lending/lending_fUSD_20240219
["ID","MTS","AMOUNT","RATE_DAILY","PERIOD"]
[314469538,1708369860369,-500.0,0.00046575,30]
[314469539,1708369860379,-366.56287328,0.00046575,30]
[314469540,1708369860715,-500.0,0.00046575,30]
[314469541,1708369860725,-500.0,0.00046575,30]
[314469542,1708369860734,-500.0,0.00046575,30]
[314469543,1708369860743,-500.0,0.00046575,30]
[314469544,1708369860753,-500.0,0.00046575,30]
[314469545,1708369860762,-500.0,0.00046575,2]
[314469546,1708369860771,-500.0,0.00046575,30]
[314469547,1708369860781,-500.0,0.00046575,30]
[314469548,1708369860790,-858.84,0.00046575,30]
[314469549,1708369860799,-500.0,0.00046575,30]
[314469550,1708369860808,-1000.0,0.00046575,7]
[314469551,1708369860817,-500.0,0.00046575,30]
[314469552,1708369860826,-686.75,0.00046575,30]
[314469553,1708369860836,-500.0,0.00046575,30]
[314469554,1708369860845,-500.0,0.00046575,30]
[314469555,1708369860855,-719.72,0.00046575,30]
[314469556,1708369860865,-500.0,0.00046575,30]
[314469557,1708369860874,-500.0,0.00046575,30]
[314469558,1708369860883,-500.0,0.00046575,30]
[314469559,1708369860893,-500.0,0.00046575,30]
[314469560,1708369860903,-500.0,0.00046575,30]
[314469561,1708369860913,-502.75,0.00046575,30]
[314469562,1708369860922,-932.35,0.00046575,30]
[314469563,1708369860931,-500.0,0.00046575,30]
[314469564,1708369860940,-500.0,0.00046575,30]
[314469565,1708369860949,-500.0,0.00046575,30]
[314469566,1708369860959,-546.31,0.00046575,30]
[314469567,1708369860968,-500.0,0.00046575,30]
[314469568,1708369860978,-500.0,0.00046575,30]
[314469569,1708369860987,-743.07,0.00046575,30]
[314469570,1708369860997,-766.25,0.00046575,30]
[314469571,1708369861006,-684.52,0.00046575,30]
[314469572,1708369861019,-329.9766712,0.00046575,30]
[314469573,1708369861028,-500.0,0.00046575,30]
[314469574,1708369861037,-151.0,0.00046575,14]
[314469575,1708369861047,-500.0,0.00046575,30]
[314469576,1708369861057,-500.0,0.00046575,30]
[314469577,1708369861067,-500.0,0.00046575,30]
[314469578,1708369861077,-500.0,0.00046575,30]
[314469579,1708369861087,-523.30889379,0.00046575,30]
[314469580,1708369861097,-500.0,0.00046575,30]
[314469581,1708369861106,-500.0,0.00046575,30]
[314469582,1708369861115,-867.93,0.00046575,30]
[314469583,1708369861125,-500.0,0.00046575,30]
[314469584,1708369861135,-500.0,0.00046575,30]
[314469585,1708369861144,-500.0,0.00046575,30]
[314469586,1708369861154,-500.0,0.00046575,30]
[314469587,1708369861163,-878.71,0.00046575,30]
[314469588,1708369861172,-856.01,0.00046575,30]
[314469589,1708369861182,-500.0,0.00046575,30]
[314469590,1708369861192,-500.0,0.00046575,30]
[314469591,1708369861201,-151.0,0.00046575,14]
[314469592,1708369861211,-845.43,0.00046575,30]
[314469593,1708369861220,-1000.0,0.00046575,7]
[314469594,1708369861230,-500.0,0.00046575,30]
[314469595,1708369861239,-500.0,0.00046575,30]
[314469596,1708369861250,-500.0,0.00046575,30]
[314469597,1708369861259,-500.0,0.00046575,30]
[314469598,1708369861269,-500.0,0.00046575,30]
[314469599,1708369861279,-500.0,0.00046575,30]
[314469600,1708369861289,-500.0,0.00046575,30]
[314469601,1708369861298,-500.0,0.00046575,30]
[314469602,1708369861308,-151.02427508,0.00046575,30]
[314469603,1708369861317,-500.0,0.00046575,30]
[314469604,1708369861327,-500.0,0.00046575,30]
[314469605,1708369861341,-500.0,0.00046575,30]
[314469606,1708369861351,-152.0,0.00046575,3]
[314469607,1708369861360,-527.16405114,0.00046575,30]
[314469608,1708369861370,-500.0,0.00046575,30]
[314469609,1708369861381,-845.97,0.00046575,30]
[314469610,1708369861391,-889.9,0.00046575,30]
[314469611,1708369861400,-500.0,0.00046575,30]
[314469612,1708369861409,-500.0,0.00046575,30]
[314469613,1708369861420,-500.0,0.00046575,30]
[314469614,1708369861430,-500.0,0.00046575,30]
[314469615,1708369861440,-500.0,0.00046575,30]
[314469616,1708369861449,-500.0,0.00046575,30]
[314469617,1708369861459,-500.0,0.00046575,30]
[314469618,1708369861469,-500.0,0.00046575,30]
[314469619,1708369861478,-157.286432,0.00046575,14]
[314469620,1708369861489,-923.36,0.00046575,30]
[314469621,1708369861499,-500.0,0.00046575,30]
[314469622,1708369861510,-500.0,0.00046575,30]
[314469623,1708369861520,-500.0,0.00046575,30]
[314469624,1708369861530,-500.0,0.00046575,30]
[314469625,1708369861540,-157.286432,0.00046575,14]
[314469626,1708369861549,-500.0,0.00046575,30]
[314469627,1708369861562,-500.0,0.00046575,30]
[314469628,1708369861571,-500.0,0.00046575,30]
[314469629,1708369861581,-610.24,0.00046575,30]
[314469630,1708369861592,-1281.05,0.00046575,30]
[314469631,1708369861601,-582.92137933,0.00046575,30]
[314469632,1708369861612,-500.0,0.00046575,30]
[314469633,1708369861622,-500.0,0.00046575,30]
[314469634,1708369861632,-500.0,0.00046575,30]
[314469635,1708369861643,-221.77660486,0.00046575,30]
[314469636,1708369861653,-500.0,0.00046575,30]
[314469637,1708369861663,-500.0,0.00046575,30]
[314469638,1708369861673,-500.0,0.00046575,30]
[314469639,1708369861683,-508.47541511,0.00046575,30]
[314469640,1708369861692,-500.0,0.00046575,30]
[314469641,1708369861702,-818.12,0.00046575,30]
[314469642,1708369861712,-905.75,0.00046575,30]
[314469643,1708369861721,-500.0,0.00046575,30]
[314469644,1708369861731,-500.0,0.00046575,30]
[314469645,1708369861740,-500.0,0.00046575,30]
[314469646,1708369861751,-500.0,0.00046575,30]
[314469647,1708369861761,-503.07349153,0.00046575,30]
[314469648,1708369861771,-629.56,0.00046575,30]
[314469649,1708369861780,-500.0,0.00046575,30]
[314469650,1708369861789,-500.0,0.00046575,30]
[314469651,1708369861798,-500.0,0.00046575,30]
[314469652,1708369861808,-500.0,0.00046575,30]
[314469653,1708369861818,-957.06,0.00046575,30]
[314469654,1708369861828,-500.0,0.00046575,30]
[314469655,1708369861837,-500.0,0.00046575,30]
[314469656,1708369861847,-500.0,0.00046575,30]
[314469657,1708369861856,-503.14186291,0.00046575,30]
[314469658,1708369861866,-500.0,0.00046575,30]
[314469659,1708369861876,-528.92,0.00046575,30]
[314469660,1708369861886,-760.44,0.00046575,30]
[314469661,1708369861895,-500.0,0.00046575,30]
[314469662,1708369861904,-500.0,0.00046575,30]
[314469663,1708369861915,-500.0,0.00046575,30]
[314469664,1708369861925,-500.0,0.00046575,30]
[314469665,1708369861934,-500.0,0.00046575,30]
[314469666,1708369861944,-500.0,0.00046575,30]
[314469667,1708369861954,-500.0,0.00046575,30]
[314469668,1708369861964,-500.0,0.00046575,30]
[314469669,1708369861974,-500.0,0.00046575,30]
[314469670,1708369861983,-500.0,0.00046575,30]
[314469671,1708369861993,-500.0,0.00046575,30]
[314469672,1708369862005,-508.68,0.00046575,30]
[314469673,1708369862015,-3229.2449174,0.00046575,30]
[314469674,1708369862568,-1092.45122874,0.00046575,30]
[314469675,1708369862595,-5678.30385386,0.00046575,30]
[314469676,1708369862604,-333.753793,0.00046575,14]
[314469677,1708369862613,-797.2,0.00046575,30]
[314469678,1708369862622,-549.58,0.00046575,30]
[314469679,1708369862631,-500.0,0.00046575,30]
[314469680,1708369862641,-500.0,0.00046575,30]
[314469681,1708369862650,-500.0,0.00046575,30]
[314469682,1708369862659,-492.56807574,0.00046575,30]
[314469683,1708369862684,-7.43192426,0.00046575,30]
[314469684,1708369862693,-333.753793,0.00046575,14]
[314469685,1708369862702,-500.0,0.00046575,30]
[314469686,1708369862711,-506.04814896,0.00046575,30]
[314469687,1708369862721,-619.89,0.00046575,30]
[314469688,1708369862730,-818.53,0.00046575,30]
[314469689,1708369862739,-500.0,0.00046575,30]
[314469690,1708369862749,-500.0,0.00046575,30]
[314469691,1708369862759,-511.94151829,0.00046575,30]
[314469692,1708369862768,-912.72,0.00046575,30]
[314469693,1708369862777,-535.06859193,0.00046575,30]
[314469694,1708369862786,-500.0,0.00046575,7]
[314469695,1708369862796,-162.488696,0.00046575,14]
[314469696,1708369862805,-3773.74969549,0.00046575,30]
[314469697,1708369862819,-6226.25030451,0.00046575,30]
[314469698,1708369862828,-500.0,0.00046575,30]
[314469699,1708369862837,-162.488696,0.00046575,14]
[314469700,1708369862847,-686.57,0.00046575,30]
[314469701,1708369862857,-784.52,0.00046575,30]
[314469702,1708369862866,-500.0,0.00046575,30]
[314469703,1708369862876,-500.0,0.00046575,30]
[314469704,1708369862885,-500.0,0.00046575,30]
[314469705,1708369862894,-500.0,0.00046575,30]
[314469706,1708369862903,-500.0,0.00046575,30]
[314469707,1708369862912,-19.35099949,0.00046575,30]
[314469708,1708369862925,-993.39900051,0.00046575,30]
[314469709,1708369862934,-500.0,0.00046575,30]
[314469710,1708369862943,-500.0,0.00046575,30]
[314469711,1708369862952,-565.84795733,0.00046575,30]
[314469712,1708369862961,-500.0,0.00046575,30]
[314469713,1708369862970,-236.16182264,0.00046575,30]
[314469714,1708369862979,-500.0,0.00046575,30]
[314469715,1708369862988,-400.16556016,0.00046575,30]
[314469716,1708369862997,-500.0,0.00046575,30]
[314469717,1708369863006,-500.0,0.00046575,30]
[314469718,1708369863016,-500.0,0.00046575,30]
[314469719,1708369863025,-500.0,0.00046575,30]
[314469720,1708369863034,-504.05464565,0.00046575,30]
[314469721,1708369863043,-500.0,0.00046575,30]
[314469722,1708369863052,-500.0,0.00046575,30]
[314469723,1708369863061,-500.0,0.00046575,30]
[314469724,1708369863070,-500.0,0.00046575,30]
[314469725,1708369863079,-543.03208358,0.00046575,30]
[314469726,1708369863089,-500.0,0.00046575,30]
[314469727,1708369863098,-500.0,0.00046575,30]
[314469728,1708369863107,-500.0,0.00046575,30]
[314469729,1708369863116,-1589.01,0.00046575,30]
[314469730,1708369863125,-607.58,0.00046575,30]
[314469731,1708369863135,-500.0,0.00046575,30]
[314469732,1708369863144,-503.65,0.00046575,30]
[314469733,1708369863153,-500.0,0.00046575,30]
[314469734,1708369863163,-500.0,0.00046575,30]
[314469735,1708369863172,-500.0,0.00046575,30]
[314469736,1708369863182,-500.0,0.00046575,30]
[314469737,1708369863191,-248.583071,0.00046575,30]
[314469738,1708369863210,-251.416929,0.00046575,30]
[314469739,1708369863220,-136.3148419,0.00046575,30]
[314469740,1708369863233,-363.6851581,0.00046575,30]
[314469741,1708369863242,-55.16437757,0.00046575,30]
[314469742,1708369863265,-23247.62584537,0.000379,2]
[314469743,1708369863274,-573.11562243,0.00046575,30]
[314469744,1708369863283,-185.94343701,0.00046575,30]
[314469745,1708369912760,-150.0,0.00025,3]
[314469746,1708370539231,583.5306,0.0001,2]
[314469747,1708370753268,878.00396376,0.0001,2]
[314469748,1708370773323,878.00396376,0.0001,2]
[314469749,1708370793253,878.00396376,0.0001,2]
[314469750,1708370819264,878.00396376,0.0001,2]
[314469751,1708370833125,-1429.0,0.00024999,2]
[314469752,1708370833146,-400.0,0.00025,3]
[314469753,1708370833166,-358.3994586,0.00026198,2]
[314469754,1708370833188,-263.7395,0.00026198,2]
[314469755,1708370833208,-300.0,0.00026296,2]
[314469756,1708370833228,-150.0,0.00026296,2]
[314469757,1708370833247,-150.0,0.00026296,2]
[314469758,1708370833267,-150.0,0.00026296,2]
[314469759,1708370833286,-250.0,0.00026296,2]
[314469760,1708370833306,-300.0,0.00026298,2]
[314469761,1708370833329,-3322.165,0.00026299,2]
[314469762,1708370833351,-206.0,0.00026675,2]
[314469763,1708370833370,-263.08348265,0.00026889,5]
[314469764,1708370833392,-600.0,0.00027,3]
[314469765,1708370833413,-358.39945854,0.00027182,2]
[314469766,1708370833433,-150.0,0.000275,5]
[314469767,1708370833453,-150.99,0.000275,2]
[314469768,1708370833473,-603.1,0.000275,2]
[314469769,1708370833497,-382.67,0.000275,2]
[314469770,1708370833516,-499.99,0.000275,2]
[314469771,1708370833536,-9999.99,0.000275,2]
[314469772,1708370833555,-299.99,0.000275,12]
[314469773,1708370833575,-589.36,0.000275,2]
[314469774,1708370833595,-1162.63,0.000275,2]
[314469775,1708370833617,-150.99,0.000275,2]
[314469776,1708370833638,-655.9,0.000275,2]
[314469777,1708370833658,-1855.56,0.000275,2]
[314469778,1708370833679,-150.0,0.0002775,6]
[314469779,1708370833702,-358.39945854,0.00028166,2]
[314469780,1708370833727,-650.0,0.00029,3]
[314469781,1708370833749,-358.39945854,0.00029151,2]
[314469782,1708370833771,-155.0,0.00029467,2]
[314469783,1708370833792,-150.0,0.00029688,2]
[314469784,1708370833813,-1010.76,0.00029741,2]
[314469785,1708370833833,-579.57,0.00029985,2]
[314469786,1708370833855,-206.0,0.00030008,7]
[314469787,1708370833875,-2705.0,0.00030128,2]
[314469788,1708370833895,-9634.46,0.00030128,2]
[314469789,1708370833916,-358.39945854,0.00030135,2]
[314469790,1708370833937,-2401.55,0.00030171,2]
[314469791,1708370833957,-150.0,0.00030236,2]
[314469792,1708370833977,-456.47,0.00030684,2]
[314469793,1708370833998,-23900.0,0.00030688,2]
[314469794,1708370834018,-274.4550542,0.00030784,2]
[314469795,1708370834038,-175.04,0.00030807,2]
[314469796,1708370834059,-456.47,0.00030862,2]
[314469797,1708370834078,-195.71,0.00030866,10]
[314469798,1708370834098,-2330.99,0.00030892,2]
[314469799,1708370834118,-1285.34,0.00030903,2]
[314469800,1708370834137,-3249.64,0.00030903,2]
[314469801,1708370834156,-250.0,0.00030966,2]
[314469802,1708370834176,-231.74,0.00030986,2]
[314469803,1708370834195,-700.0,0.00031,3]
[314469804,1708370834215,-456.47,0.00031039,2]
[314469805,1708370834235,-358.39945854,0.00031119,2]
[314469806,1708370834255,-1462.74,0.00031138,2]
[314469807,1708370834275,-194.89,0.0003114,2]
[314469808,1708370834298,-1366.66,0.00031142,2]
[314469809,1708370834318,-456.47,0.00031216,2]
[314469810,1708370834339,-456.47,0.00031394,2]
[314469811,1708370834359,-456.47,0.00031571,2]
[314469812,1708370834379,-1302.14,0.00031637,2]
[314469813,1708370834398,-418.50948102,0.00031648,2]
[314469814,1708370834418,-692.02,0.00031659,2]
[314469815,1708370834439,-2000.0,0.00031684,2]
[314469816,1708370834458,-200.0,0.00031691,2]
[314469817,1708370834478,-405.45,0.00031691,2]
[314469818,1708370834497,-150.0,0.00031703,2]
[314469819,1708370834516,-500.0,0.00031703,2]
[314469820,1708370834536,-1272.3,0.00031738,2]
[314469821,1708370834555,-15072.18344257,0.00031742,2]
[314469822,1708370835062,878.00396376,0.0001,2]
[314469825,1708370954098,-1179.65983614,0.00030155,4]
[314469826,1708370954118,-960.22,0.00030855,2]
[314469827,1708370960112,-22183.2,0.00031742,2]
[314469828,1708370962083,-3287.37098968,0.00031742,2]
[314469831,1708370971749,878.00396376,0.0001,2]
[314469832,1708370983757,385.55466859,0.000295,3]
[314469835,1708370993753,798.27080293,0.0001,2]
[314469839,1708371031521,-417.80075498,0.00031642,2]
[314469840,1708371031576,-285.49291442,0.00031642,2]
[314469841,1708371031633,-251.12805821,0.00031642,2]
[314469842,1708371031697,-777.02625,0.00031642,2]
[314469843,1708371031755,-1256.25142239,0.00031642,2]
[314469844,1708371031768,-26087.71363932,0.00031742,2]
[314469845,1708371031778,-456.47,0.00031748,2]
[314469846,1708371031787,-3035.79,0.00031752,2]
[314469847,1708371031797,-10739.03791794,0.00031775,2]
[314469848,1708371031807,-250.0,0.00031775,2]
[314469849,1708371031817,-456.47,0.00031925,2]
[314469850,1708371031826,-150.99,0.00031925,2]
[314469851,1708371031835,-499.99,0.00031925,2]
[314469852,1708371031845,-456.47,0.00032103,2]
[314469853,1708371031855,-456.47,0.0003228,2]
[314469854,1708371031865,-2555.0,0.000325,3]
[314469855,1708371031875,-17367.0,0.000325,3]
[314469856,1708371031884,-500.0,0.00032752,2]
[314469857,1708371031894,-803.91,0.000328,2]
[314469858,1708371031904,-318.78,0.00032877,2]
[314469859,1708371031913,-4642.41894876,0.000329,2]
[314469860,1708371031923,-750.0,0.00033,3]
[314469861,1708371031932,-960.22,0.00033119,2]
[314469862,1708371031942,-200.0,0.00033159,2]
[314469863,1708371031951,-500.0,0.00033196,2]
[314469864,1708371031961,-965.62,0.000332,2]
[314469865,1708371031970,-544.57,0.00033218,2]
[314469866,1708371031980,-150.0,0.00033243,2]
[314469867,1708371031989,-166.17,0.00033247,2]
[314469868,1708371031999,-965.62,0.00033291,2]
[314469869,1708371032009,-206.0,0.0003334,13]
[314469870,1708371032021,-965.62,0.00033382,2]
[314469871,1708371032034,-3035.79,0.00033396,2]
[314469872,1708371032043,-965.62,0.00033473,2]
[314469873,1708371032053,-965.62,0.00033564,2]
[314469874,1708371032063,-965.62,0.00033655,2]
[314469875,1708371032072,-965.62,0.00033746,2]
[314469876,1708371032081,-965.62,0.00033837,2]
[314469877,1708371032091,-1000.0,0.00033885,2]
[314469878,1708371032100,-195.71,0.00033891,10]
[314469879,1708371032109,-636.15,0.00033913,2]
[314469880,1708371032118,-965.62,0.00033928,2]
[314469881,1708371032128,-150.0,0.00033928,2]
[314469882,1708371032137,-965.62,0.00034019,2]
[314469883,1708371032147,-965.62,0.0003411,2]
[314469884,1708371032156,-965.62,0.00034201,2]
[314469885,1708371032165,-965.62,0.00034292,2]
[314469886,1708371032175,-965.62,0.00034383,2]
[314469887,1708371032184,-965.62,0.00034474,2]
[314469888,1708371032194,-317.588057,0.0003452,2]
[314469889,1708371032203,-476.382086,0.0003452,2]
[314469890,1708371032213,-4260.26,0.00034521,2]
[314469891,1708371032222,-965.62,0.00034565,2]
[314469892,1708371032232,-965.62,0.00034656,2]
[314469893,1708371032241,-965.62,0.00034747,2]
[314469894,1708371032251,-476.382086,0.00034794,2]
[314469895,1708371032260,-714.573129,0.00034794,2]
[314469896,1708371032271,-965.62,0.00034838,2]
[314469897,1708371032280,-544.57,0.00034879,2]
[314469898,1708371032289,-965.62,0.00034929,2]
[314469899,1708371032299,-635.176114,0.00034931,2]
[314469900,1708371032309,-952.764172,0.00034931,2]
[314469901,1708371032319,-279.00632068,0.00034956,2]
[314469902,1708371032328,-800.0,0.00035,3]
[314469903,1708371032338,-3035.79,0.0003504,2]
[314469904,1708371032347,-793.970143,0.00035068,2]
[314469905,1708371032356,-1190.955215,0.00035068,2]
[314469906,1708371032366,-165.97,0.00035139,2]
[314469907,1708371032375,-21799.459908,0.00035342,2]
[314469908,1708371032385,-1111.5582,0.00035342,2]
[314469909,1708371032394,-1667.337301,0.00035342,2]
[314469910,1708371032404,-960.22,0.00035383,2]
[314469911,1708371032413,-666.0,0.00035616,2]
[314469912,1708371032423,-1500.0,0.00035616,10]
[314469913,1708371032751,-4260.26,0.00035798,2]
[314469914,1708371032765,-4712.12,0.00036001,2]
[314469915,1708371032776,-165.45,0.00036001,2]
[314469916,1708371032786,-206.47,0.00036438,2]
[314469917,1708371032796,-158.94,0.00036491,2]
[314469918,1708371032805,-544.57,0.0003654,2]
[314469919,1708371032815,-360.43720995,0.00036554,7]
[314469920,1708371032825,-206.0,0.00036673,19]
[314469921,1708371032835,-3035.79,0.00036683,2]
[314469922,1708371032847,-1460.01127651,0.00036798,2]
[314469923,1708371032857,-918.61,0.00036829,2]
[314469924,1708371032867,-850.0,0.00037,3]
[314469925,1708371032876,-300.0,0.00037,38]
[314469926,1708371032886,-918.61,0.00037023,2]
[314469927,1708371032895,-358.39945854,0.00037024,2]
[314469928,1708371032905,-150.1,0.00037054,2]
[314469929,1708371032915,-4260.26,0.00037075,2]
[314469930,1708371032924,-918.61,0.00037216,2]
[314469931,1708371032934,-306.32,0.0003722,2]
[314469932,1708371032943,-1375.84025933,0.00037395,2]
[314469933,1708371032953,-1375.84025934,0.00037395,2]
[314469934,1708371032963,-918.61,0.0003741,2]
[314469935,1708371032972,-279.00632066,0.00037428,2]
[314469936,1708371032982,-67265.58586114,0.00037463,2]
[314469937,1708371033003,-1049.68453788,0.00037463,2]
[314469938,1708371033043,-1030.78743666,0.00037463,2]
[314469939,1708371033056,-20112.94216432,0.00037463,2]
[314469940,1708371033066,-918.61,0.00037604,2]
[314469941,1708371033075,-960.22,0.00037647,2]
[314469942,1708371033085,-180.0,0.00037671,2]
[314469943,1708371033095,-152.0,0.00037755,3]
[314469944,1708371033105,-918.61,0.00037798,2]
[314469945,1708371033114,-1460.01127651,0.00037926,2]
[314469946,1708371033123,-918.61,0.00037992,2]
[314469947,1708371033133,-300.0,0.00038,39]
[314469949,1708371033143,-358.39945854,0.00038009,2]
[314469951,1708371033152,-165.97,0.00038038,2]
[314469953,1708371033162,-1000.0,0.00038121,2]
[314469955,1708371033171,-918.61,0.00038186,2]
[314469957,1708371033181,-544.57,0.000382,2]
[314469959,1708371033190,-3035.79,0.00038327,2]
[314469962,1708371033200,-4260.26,0.00038352,2]
[314469963,1708371033209,-374.99,0.00038356,15]
[314469965,1708371033219,-150.0,0.00038356,2]
[314469967,1708371033228,-375.69,0.00038356,30]
[314469969,1708371033238,-918.61,0.00038379,2]
[314469971,1708371033247,-158.94,0.00038387,2]
[314469972,1708371033256,-306.32,0.00038537,2]
[314469974,1708371033266,-918.61,0.00038573,2]
[314469975,1708371033276,-163.37947036,0.00038632,4]
[314469976,1708371033285,-204.14700503,0.00038632,4]
[314469977,1708371033294,-48618.75681749,0.00038641,16]
[314469978,1708371033305,-8396.61766513,0.00038641,13]
[314469979,1708371033315,-6703.34686493,0.00038641,13]
[314469980,1708371033324,-918.61,0.00038767,2]
[314469981,1708371033334,-853.5885,0.000389,2]
[314469982,1708371033343,-1547.08794382,0.000389,2]
[314469983,1708371033352,-1547.08794367,0.000389,2]
[314469984,1708371033362,-1547.08794367,0.000389,2]
[314469985,1708371033371,-1547.08794367,0.000389,2]
[314469986,1708371033381,-1547.08794367,0.000389,2]
[314469987,1708371033390,-918.61,0.00038961,2]
[314469988,1708371033400,-358.39945854,0.00038993,2]
[314469989,1708371033409,-900.0,0.00039,3]
[314469990,1708371033420,-900.0,0.00039,4]
[314469991,1708371033430,-153.09,0.00039,3]
[314469992,1708371033439,-686.25,0.00039,3]
[314469993,1708371033449,-686.25,0.00039,3]
[314469994,1708371033462,-686.25,0.00039,3]
[314469995,1708371033472,-686.25,0.00039,3]
[314469996,1708371033482,-686.25,0.00039,3]
[314469997,1708371033493,-686.25,0.00039,3]
[314469998,1708371033503,-686.25,0.00039,3]
[314469999,1708371033513,-686.25,0.00039,3]
[314470000,1708371033524,-686.25,0.00039,3]
[314470001,1708371033534,-686.25,0.00039,3]
[314470002,1708371033544,-686.25,0.00039,3]
[314470003,1708371033554,-686.25,0.00039,3]
[314470004,1708371033563,-686.25,0.00039,3]
[314470005,1708371033573,-686.25,0.00039,3]
[314470006,1708371033584,-686.25,0.00039,3]
[314470007,1708371033593,-686.25,0.00039,3]
[314470008,1708371033603,-686.25,0.00039,3]
[314470009,1708371033613,-686.25,0.00039,3]
[314470010,1708371033623,-686.25,0.00039,3]
[314470011,1708371033633,-686.25,0.00039,3]
[314470012,1708371033644,-300.0,0.00039,40]
[314470013,1708371033653,-1547.08794367,0.00039035,2]
[314470014,1708371033664,-363.540009,0.0003914,2]
[314470015,1708371033675,-198.262254,0.0003914,2]
[314470016,1708371033686,-918.61,0.00039155,2]
[314470017,1708371033696,-4490.82,0.00039178,2]
[314470018,1708371033706,-1781.36433414,0.00039248,2]
[314470019,1708371033716,-1460.01127651,0.00039268,2]
[314470020,1708371033726,-151.6,0.000393,2]
[314470021,1708371033736,-918.61,0.00039349,2]
[314470022,1708371033746,-150.0,0.00039366,2]
[314470023,1708371033756,-4757.52663794,0.00039471,2]
[314470024,1708371033766,-1547.08794367,0.00039525,2]
[314470025,1708371033776,-918.61,0.00039542,2]
[314470026,1708371033786,-165.45,0.00039601,2]
[314470027,1708371033796,-3123.36646211,0.00039606,7]
[314470028,1708371033805,-363.540009,0.00039629,2]
[314470029,1708371033815,-4260.26,0.0003963,2]
[314470030,1708371033824,-152.6253283,0.00039639,7]
[314470031,1708371033834,-753.73738428,0.00039639,8]
[314470032,1708371033843,-671.35220348,0.00039648,11]
[314470033,1708371033853,-168.64571773,0.00039655,7]
[314470034,1708371033862,-211.93786944,0.00039655,7]
[314470035,1708371033872,-226.93007843,0.00039679,8]
[314470036,1708371033881,-283.90483887,0.00039687,8]
[314470037,1708371033891,-1000.0,0.00039699,2]
[314470038,1708371033900,-918.61,0.00039736,2]
[314470039,1708371033910,-306.32,0.00039853,2]
[314470040,1708371033919,-544.57,0.00039861,2]
[314470041,1708371033929,-279.00632066,0.000399,2]
[314470042,1708371033939,-960.22,0.00039911,2]
[314470043,1708371033948,-918.61,0.0003993,2]
[314470044,1708371033957,-152.0,0.0003996,4]
[314470045,1708371033967,-3035.79,0.00039971,2]
[314470046,1708371033977,-358.39945854,0.00039977,2]
[314470047,1708371033986,-447.75250381,0.0004,4]
[314470048,1708371033999,-3980.14712145,0.0004,30]
[314470049,1708371034010,-300.0,0.0004,41]
[314470050,1708371034020,-255.0,0.0004,12]
[314470051,1708371034030,-255.0,0.0004,12]
[314470052,1708371034039,-1000.0,0.0004,2]
[314470053,1708371034049,-401.31074543,0.0004,12]
[314470054,1708371034059,-224.5960252,0.0004,2]
[314470055,1708371034069,-224.5960252,0.0004,2]
[314470056,1708371034079,-224.5960252,0.0004,2]
[314470057,1708371034089,-224.5960252,0.0004,2]
[314470058,1708371034099,-224.5960252,0.0004,2]
[314470059,1708371034108,-224.5960252,0.0004,2]